[Event "Titled Tuesday Blitz June 14 Late 2022"]
[White "Andreikin, Dmitry"]
[Black "Oparin, Grigoriy"]
[WhiteFideId "4158814"]
[BlackFideId "24125890"]
[WhiteElo "2736"]
[BlackElo "2639"]
[Result "1/2-1/2"]
[Round "05"]
[TimeControl "180+1"]
[Date "2022.06.14"]
[WhiteClock "0:00:21"]
[BlackClock "0:00:12"]

1. Nf3 {[%clk 0:03:00]}  Nf6 {[%clk 0:03:00]} 2. g3 {[%clk 0:03:00]}  d5 {[%clk 0:02:59]} 3. Bg2 {[%clk 0:03:00]}  e6 {[%clk 0:03:00]} 4. O-O {[%clk 0:02:59]}  Be7 {[%clk 0:03:00]} 5. c4 {[%clk 0:02:57]}  O-O {[%clk 0:03:00]} 6. d4 {[%clk 0:02:57]}  dxc4 {[%clk 0:02:59]} 7. Qc2 {[%clk 0:02:57]}  a6 {[%clk 0:03:00]} 8. a4 {[%clk 0:02:56]}  Bd7 {[%clk 0:03:00]} 9. Qxc4 {[%clk 0:02:55]}  Bc6 {[%clk 0:03:00]} 10. Bf4 {[%clk 0:02:56]}  Nbd7 {[%clk 0:02:55]} 11. Qc1 {[%clk 0:02:56]}  Bd6 {[%clk 0:02:41]} 12. Nc3 {[%clk 0:02:55]}  b5 {[%clk 0:02:41]} 13. axb5 {[%clk 0:02:34]}  axb5 {[%clk 0:02:41]} 14. Ne5 {[%clk 0:02:31]}  Bxg2 {[%clk 0:02:36]} 15. Kxg2 {[%clk 0:02:32]}  Qb8 {[%clk 0:02:20]} 16. Nxd7 {[%clk 0:02:13]}  Qb7+ {[%clk 0:02:18]} 17. Kg1 {[%clk 0:02:09]}  Nxd7 {[%clk 0:02:19]} 18. Bxd6 {[%clk 0:02:05]}  cxd6 {[%clk 0:02:20]} 19. Qf4 {[%clk 0:02:05]}  d5 {[%clk 0:02:03]} 20. Qd6 {[%clk 0:02:04]}  b4 {[%clk 0:01:57]} 21. Na4 {[%clk 0:02:02]}  Qb5 {[%clk 0:01:57]} 22. Nc5 {[%clk 0:01:57]}  Nf6 {[%clk 0:01:22]} 23. e3 {[%clk 0:01:49]}  h5 {[%clk 0:01:22]} 24. b3 {[%clk 0:01:40]}  Ra3 {[%clk 0:01:17]} 25. h4 {[%clk 0:01:27]}  Rfa8 {[%clk 0:01:15]} 26. Rac1 {[%clk 0:01:25]}  Ra2 {[%clk 0:01:14]} 27. Qf4 {[%clk 0:01:17]}  Qe2 {[%clk 0:01:08]} 28. Nb7 {[%clk 0:01:15]}  Qg4 {[%clk 0:00:56]} 29. Qxg4 {[%clk 0:00:57]}  hxg4 {[%clk 0:00:57]} 30. Nc5 {[%clk 0:00:57]}  Kh7 {[%clk 0:00:58]} 31. Nd3 {[%clk 0:00:51]}  Ne4 {[%clk 0:00:42]} 32. Rc7 {[%clk 0:00:47]}  f6 {[%clk 0:00:37]} 33. Nf4 {[%clk 0:00:41]}  Re8 {[%clk 0:00:31]} 34. Nh5 {[%clk 0:00:38]}  Rg8 {[%clk 0:00:25]} 35. Rb7 {[%clk 0:00:38]}  Kg6 {[%clk 0:00:19]} 36. Nf4+ {[%clk 0:00:38]}  Kf5 {[%clk 0:00:20]} 37. Nh5 {[%clk 0:00:27]}  Kg6 {[%clk 0:00:20]} 38. Nf4+ {[%clk 0:00:26]}  Kf5 {[%clk 0:00:21]} 39. Nh5 {[%clk 0:00:21]}  Kg6 {[%clk 0:00:12]} 1/2-1/2


[Site "https://www.chess.com"]

[Event "Titled Tuesday Blitz June 14 Late 2022"]
[White "Babazada, Khazar"]
[Black "Salem, A.R. Saleh"]
[WhiteFideId "13413554"]
[BlackFideId "9301348"]
[WhiteElo "2406"]
[BlackElo "2679"]
[Result "1/2-1/2"]
[Round "05"]
[TimeControl "180+1"]
[Date "2022.06.14"]
[WhiteClock "0:00:18"]
[BlackClock "0:00:16"]

1. e4 {[%clk 0:03:00]}  c5 {[%clk 0:02:59]} 2. Nf3 {[%clk 0:03:00]}  d6 {[%clk 0:03:00]} 3. d4 {[%clk 0:03:00]}  cxd4 {[%clk 0:03:01]} 4. Nxd4 {[%clk 0:03:01]}  Nf6 {[%clk 0:03:00]} 5. Nc3 {[%clk 0:03:01]}  a6 {[%clk 0:03:01]} 6. h3 {[%clk 0:03:01]}  e6 {[%clk 0:03:01]} 7. g4 {[%clk 0:03:00]}  Be7 {[%clk 0:03:02]} 8. g5 {[%clk 0:03:00]}  Nfd7 {[%clk 0:03:03]} 9. Be3 {[%clk 0:03:00]}  b5 {[%clk 0:03:03]} 10. a3 {[%clk 0:02:57]}  Bb7 {[%clk 0:03:03]} 11. Bg2 {[%clk 0:02:55]}  Nc6 {[%clk 0:03:02]} 12. Nxc6 {[%clk 0:02:50]}  Bxc6 {[%clk 0:03:01]} 13. h4 {[%clk 0:02:51]}  O-O {[%clk 0:03:00]} 14. f4 {[%clk 0:02:43]}  Rb8 {[%clk 0:03:00]} 15. Qd2 {[%clk 0:02:39]}  a5 {[%clk 0:02:53]} 16. h5 {[%clk 0:02:34]}  b4 {[%clk 0:02:52]} 17. axb4 {[%clk 0:02:34]}  Rxb4 {[%clk 0:02:52]} 18. g6 {[%clk 0:02:32]}  Nf6 {[%clk 0:02:48]} 19. gxh7+ {[%clk 0:01:38]}  Kh8 {[%clk 0:02:47]} 20. h6 {[%clk 0:01:39]}  g6 {[%clk 0:02:46]} 21. f5 {[%clk 0:01:35]}  Kxh7 {[%clk 0:02:39]} 22. fxg6+ {[%clk 0:01:21]}  fxg6 {[%clk 0:02:40]} 23. e5 {[%clk 0:01:17]}  Bxg2 {[%clk 0:02:37]} 24. exf6 {[%clk 0:01:17]}  Bxh1 {[%clk 0:02:16]} 25. fxe7 {[%clk 0:01:18]}  Qxe7 {[%clk 0:02:17]} 26. O-O-O {[%clk 0:01:18]}  Bf3 {[%clk 0:02:13]} 27. Qxd6 {[%clk 0:01:09]}  Qxd6 {[%clk 0:02:14]} 28. Rxd6 {[%clk 0:01:09]}  Rf7 {[%clk 0:02:03]} 29. Rxe6 {[%clk 0:01:03]}  Rg4 {[%clk 0:01:48]} 30. b3 {[%clk 0:00:51]}  Rg2 {[%clk 0:01:47]} 31. Nb5 {[%clk 0:00:31]}  Bd5 {[%clk 0:01:46]} 32. Re5 {[%clk 0:00:30]}  Bxb3 {[%clk 0:01:46]} 33. Nd4 {[%clk 0:00:27]}  a4 {[%clk 0:01:17]} 34. Ra5 {[%clk 0:00:28]}  Rc7 {[%clk 0:01:10]} 35. Bd2 {[%clk 0:00:25]}  Rg4 {[%clk 0:00:41]} 36. Be3 {[%clk 0:00:22]}  Rg3 {[%clk 0:00:38]} 37. Bd2 {[%clk 0:00:19]}  Rd3 {[%clk 0:00:36]} 38. Bf4 {[%clk 0:00:18]}  Rxd4 {[%clk 0:00:20]} 39. Bxc7 {[%clk 0:00:18]}  Rc4 {[%clk 0:00:20]} 40. Be5 {[%clk 0:00:07]}  Rxc2+ {[%clk 0:00:19]} 41. Kb1 {[%clk 0:00:08]}  Kxh6 {[%clk 0:00:19]} 42. Bf6 {[%clk 0:00:08]}  Rf2 {[%clk 0:00:16]} 43. Bg5+ {[%clk 0:00:08]}  Kg7 {[%clk 0:00:15]} 44. Ra7+ {[%clk 0:00:08]}  Kg8 {[%clk 0:00:15]} 45. Kc1 {[%clk 0:00:08]}  Rf5 {[%clk 0:00:16]} 46. Be3 {[%clk 0:00:08]}  Rd5 {[%clk 0:00:15]} 47. Kb2 {[%clk 0:00:07]}  g5 {[%clk 0:00:15]} 48. Kc3 {[%clk 0:00:07]}  g4 {[%clk 0:00:16]} 49. Bd4 {[%clk 0:00:07]}  g3 {[%clk 0:00:16]} 50. Rg7+ {[%clk 0:00:07]}  Kf8 {[%clk 0:00:15]} 51. Rxg3 {[%clk 0:00:08]}  Kf7 {[%clk 0:00:16]} 52. Re3 {[%clk 0:00:08]}  Rd6 {[%clk 0:00:15]} 53. Re5 {[%clk 0:00:08]}  Rc6+ {[%clk 0:00:16]} 54. Rc5 {[%clk 0:00:09]}  Rg6 {[%clk 0:00:15]} 55. Rf5+ {[%clk 0:00:09]}  Ke6 {[%clk 0:00:15]} 56. Rf6+ {[%clk 0:00:10]}  Rxf6 {[%clk 0:00:15]} 57. Bxf6 {[%clk 0:00:11]}  Kxf6 {[%clk 0:00:16]} 58. Kb2 {[%clk 0:00:11]}  Ke5 {[%clk 0:00:16]} 59. Ka1 {[%clk 0:00:12]}  Kd4 {[%clk 0:00:16]} 60. Kb1 {[%clk 0:00:13]}  Kc3 {[%clk 0:00:17]} 61. Ka1 {[%clk 0:00:14]}  a3 {[%clk 0:00:15]} 62. Kb1 {[%clk 0:00:15]}  Bc4 {[%clk 0:00:15]} 63. Ka1 {[%clk 0:00:16]}  Kb4 {[%clk 0:00:15]} 64. Kb1 {[%clk 0:00:17]}  Kb3 {[%clk 0:00:15]} 65. Ka1 {[%clk 0:00:18]}  Bd3 {[%clk 0:00:16]} 1/2-1/2


[Site "https://www.chess.com"]

[Event "Titled Tuesday Blitz June 14 Late 2022"]
[White "Barria Zuniga, Daniel"]
[Black "Sargsyan, Anna M."]
[WhiteFideId "3400816"]
[BlackFideId "13308130"]
[WhiteElo "2414"]
[BlackElo "2271"]
[Result "0-1"]
[Round "05"]
[TimeControl "180+1"]
[Date "2022.06.15"]
[WhiteClock "0:00:11"]
[BlackClock "0:00:32"]

1. d4 {[%clk 0:03:00]}  d5 {[%clk 0:02:59]} 2. c4 {[%clk 0:02:57]}  c6 {[%clk 0:02:59]} 3. Nf3 {[%clk 0:02:55]}  Nf6 {[%clk 0:03:00]} 4. Nc3 {[%clk 0:02:54]}  dxc4 {[%clk 0:03:00]} 5. e3 {[%clk 0:02:51]}  b5 {[%clk 0:02:59]} 6. a4 {[%clk 0:02:51]}  b4 {[%clk 0:02:54]} 7. Na2 {[%clk 0:02:49]}  a5 {[%clk 0:02:52]} 8. Bxc4 {[%clk 0:02:49]}  e6 {[%clk 0:02:52]} 9. O-O {[%clk 0:02:48]}  Be7 {[%clk 0:02:48]} 10. Qe2 {[%clk 0:02:48]}  O-O {[%clk 0:02:49]} 11. e4 {[%clk 0:02:42]}  Ba6 {[%clk 0:02:48]} 12. Bxa6 {[%clk 0:02:40]}  Nxa6 {[%clk 0:02:49]} 13. Rd1 {[%clk 0:02:38]}  c5 {[%clk 0:02:38]} 14. Bg5 {[%clk 0:02:34]}  cxd4 {[%clk 0:02:34]} 15. Nxd4 {[%clk 0:02:30]}  Qb6 {[%clk 0:02:34]} 16. Nc1 {[%clk 0:02:11]}  h6 {[%clk 0:02:33]} 17. Bh4 {[%clk 0:01:54]}  Rfd8 {[%clk 0:02:32]} 18. Ncb3 {[%clk 0:01:54]}  g5 {[%clk 0:02:16]} 19. Bg3 {[%clk 0:01:52]}  Nc5 {[%clk 0:02:16]} 20. Nxc5 {[%clk 0:01:29]}  Bxc5 {[%clk 0:02:17]} 21. Nb3 {[%clk 0:01:28]}  Be7 {[%clk 0:01:52]} 22. Be5 {[%clk 0:01:09]}  Rxd1+ {[%clk 0:01:32]} 23. Rxd1 {[%clk 0:01:05]}  Qc6 {[%clk 0:01:26]} 24. Bxf6 {[%clk 0:00:25]}  Bxf6 {[%clk 0:01:27]} 25. e5 {[%clk 0:00:25]}  Be7 {[%clk 0:01:26]} 26. Qb5 {[%clk 0:00:23]}  Qc2 {[%clk 0:01:24]} 27. Qd3 {[%clk 0:00:22]}  Qxb2 {[%clk 0:01:20]} 28. h4 {[%clk 0:00:18]}  Qxe5 {[%clk 0:01:18]} 29. hxg5 {[%clk 0:00:17]}  hxg5 {[%clk 0:01:17]} 30. Qf3 {[%clk 0:00:15]}  Rf8 {[%clk 0:01:01]} 31. g3 {[%clk 0:00:15]}  Kg7 {[%clk 0:00:51]} 32. Rd7 {[%clk 0:00:15]}  Bf6 {[%clk 0:00:48]} 33. Nd4 {[%clk 0:00:15]}  Rh8 {[%clk 0:00:35]} 34. Kg2 {[%clk 0:00:11]}  Qe1 {[%clk 0:00:32]} 0-1


[Site "https://www.chess.com"]

[Event "Titled Tuesday Blitz June 14 Late 2022"]
[White "Bayo Milagro, Alvaro"]
[Black "Steinberg, Nitzan"]
[WhiteFideId "22275240"]
[BlackFideId "2801795"]
[WhiteElo "2270"]
[BlackElo "2471"]
[Result "1-0"]
[Round "05"]
[TimeControl "180+1"]
[Date "2022.06.14"]
[WhiteClock "0:00:42"]
[BlackClock "0:00:58"]

1. d3 {[%clk 0:03:00]}  d5 {[%clk 0:03:00]} 2. Nf3 {[%clk 0:02:56]}  Nf6 {[%clk 0:03:00]} 3. g3 {[%clk 0:02:56]}  c5 {[%clk 0:03:00]} 4. Bg2 {[%clk 0:02:57]}  Nc6 {[%clk 0:03:01]} 5. O-O {[%clk 0:02:57]}  g6 {[%clk 0:03:01]} 6. Nc3 {[%clk 0:02:55]}  Bg7 {[%clk 0:03:01]} 7. a3 {[%clk 0:02:55]}  O-O {[%clk 0:03:01]} 8. Rb1 {[%clk 0:02:55]}  b6 {[%clk 0:02:51]} 9. b4 {[%clk 0:02:54]}  cxb4 {[%clk 0:02:51]} 10. axb4 {[%clk 0:02:55]}  Bb7 {[%clk 0:02:52]} 11. b5 {[%clk 0:02:55]}  Nb8 {[%clk 0:02:45]} 12. Ba3 {[%clk 0:02:51]}  Re8 {[%clk 0:02:44]} 13. Na2 {[%clk 0:02:37]}  e5 {[%clk 0:02:40]} 14. e3 {[%clk 0:02:37]}  Nbd7 {[%clk 0:02:33]} 15. Nb4 {[%clk 0:02:37]}  Rc8 {[%clk 0:02:32]} 16. Bb2 {[%clk 0:02:32]}  Bf8 {[%clk 0:02:22]} 17. Nc6 {[%clk 0:02:23]}  Bxc6 {[%clk 0:02:20]} 18. bxc6 {[%clk 0:02:23]}  Rxc6 {[%clk 0:02:21]} 19. c4 {[%clk 0:02:23]}  Rc8 {[%clk 0:02:11]} 20. cxd5 {[%clk 0:02:19]}  Nxd5 {[%clk 0:02:11]} 21. Rc1 {[%clk 0:02:03]}  Rxc1 {[%clk 0:02:04]} 22. Qxc1 {[%clk 0:02:04]}  Bg7 {[%clk 0:01:53]} 23. Qa1 {[%clk 0:02:02]}  a5 {[%clk 0:01:50]} 24. Rc1 {[%clk 0:01:56]}  Nc5 {[%clk 0:01:47]} 25. Bxe5 {[%clk 0:01:17]}  Nb3 {[%clk 0:01:40]} 26. Qb2 {[%clk 0:01:16]}  Nxc1 {[%clk 0:01:37]} 27. Bxg7 {[%clk 0:01:16]}  Nxd3 {[%clk 0:01:35]} 28. Qa1 {[%clk 0:01:14]}  f6 {[%clk 0:01:31]} 29. Bh6 {[%clk 0:01:08]}  Qc7 {[%clk 0:01:29]} 30. Nd4 {[%clk 0:00:58]}  N5b4 {[%clk 0:01:23]} 31. Nc6 {[%clk 0:00:51]}  Nxc6 {[%clk 0:01:05]} 32. Bd5+ {[%clk 0:00:48]}  Qf7 {[%clk 0:00:58]} 33. Qxf6 {[%clk 0:00:42]} 1-0


[Site "https://www.chess.com"]

[Event "Titled Tuesday Blitz June 14 Late 2022"]
[White "Bernadskiy, Vitaliy"]
[Black "Meshkovs, Nikita"]
[WhiteFideId "14100371"]
[BlackFideId "11602740"]
[WhiteElo "2473"]
[BlackElo "2506"]
[Result "1-0"]
[Round "05"]
[TimeControl "180+1"]
[Date "2022.06.14"]
[WhiteClock "0:00:23"]
[BlackClock "0:00:02"]

1. b3 {[%clk 0:03:00]}  e5 {[%clk 0:02:57]} 2. Bb2 {[%clk 0:03:01]}  Nc6 {[%clk 0:02:58]} 3. Nf3 {[%clk 0:03:01]}  Bd6 {[%clk 0:02:59]} 4. d4 {[%clk 0:02:58]}  e4 {[%clk 0:02:37]} 5. d5 {[%clk 0:02:58]}  exf3 {[%clk 0:02:23]} 6. dxc6 {[%clk 0:02:57]}  dxc6 {[%clk 0:01:58]} 7. Bxg7 {[%clk 0:02:38]}  Qg5 {[%clk 0:01:58]} 8. Bxh8 {[%clk 0:01:54]}  fxg2 {[%clk 0:01:58]} 9. Bxg2 {[%clk 0:01:47]}  Qxg2 {[%clk 0:01:59]} 10. Kd2 {[%clk 0:01:45]}  Bg4 {[%clk 0:01:05]} 11. Qg1 {[%clk 0:01:36]}  Qe4 {[%clk 0:00:36]} 12. f3 {[%clk 0:01:35]}  Bf4+ {[%clk 0:00:35]} 13. Ke1 {[%clk 0:01:26]}  Bxf3 {[%clk 0:00:32]} 14. Nc3 {[%clk 0:01:08]}  Qe6 {[%clk 0:00:12]} 15. Qxg8+ {[%clk 0:00:58]}  Ke7 {[%clk 0:00:12]} 16. Qxa8 {[%clk 0:00:58]}  Bxh1 {[%clk 0:00:12]} 17. Bg7 {[%clk 0:00:53]}  Bd6 {[%clk 0:00:04]} 18. Bf8+ {[%clk 0:00:43]}  Kd7 {[%clk 0:00:04]} 19. Bxd6 {[%clk 0:00:44]}  cxd6 {[%clk 0:00:02]} 20. Qxb7+ {[%clk 0:00:43]}  Ke8 {[%clk 0:00:02]} 21. Qxa7 {[%clk 0:00:28]}  Qe5 {[%clk 0:00:02]} 22. Kd2 {[%clk 0:00:26]}  c5 {[%clk 0:00:03]} 23. Qa4+ {[%clk 0:00:24]}  Kf8 {[%clk 0:00:03]} 24. Rxh1 {[%clk 0:00:22]}  d5 {[%clk 0:00:02]} 25. Qa8+ {[%clk 0:00:22]}  Kg7 {[%clk 0:00:02]} 26. Qxd5 {[%clk 0:00:23]} 1-0


[Site "https://www.chess.com"]

[Event "Titled Tuesday Blitz June 14 Late 2022"]
[White "Bongo Akanga Ndjila, Barthelemy"]
[Black "Antonova, Nadezhda"]
[WhiteFideId "10609431"]
[BlackFideId "14700182"]
[WhiteElo "1768"]
[BlackElo "1746"]
[Result "0-1"]
[Round "05"]
[TimeControl "180+1"]
[Date "2022.06.15"]
[WhiteClock "0:00:26"]
[BlackClock "0:00:07"]

1. d4 {[%clk 0:03:00]}  Nf6 {[%clk 0:02:59]} 2. c4 {[%clk 0:02:59]}  g6 {[%clk 0:02:59]} 3. Nc3 {[%clk 0:02:59]}  Bg7 {[%clk 0:03:00]} 4. e4 {[%clk 0:02:58]}  d6 {[%clk 0:03:00]} 5. Be2 {[%clk 0:02:58]}  O-O {[%clk 0:03:01]} 6. Nf3 {[%clk 0:02:59]}  e5 {[%clk 0:03:01]} 7. O-O {[%clk 0:02:59]}  Nc6 {[%clk 0:03:01]} 8. Be3 {[%clk 0:02:58]}  Ng4 {[%clk 0:02:55]} 9. Bg5 {[%clk 0:02:57]}  f6 {[%clk 0:02:49]} 10. Bc1 {[%clk 0:02:57]}  Nh6 {[%clk 0:02:46]} 11. d5 {[%clk 0:02:55]}  Ne7 {[%clk 0:02:45]} 12. b4 {[%clk 0:02:55]}  Nf7 {[%clk 0:02:41]} 13. c5 {[%clk 0:02:52]}  f5 {[%clk 0:02:41]} 14. Ng5 {[%clk 0:02:48]}  Nxg5 {[%clk 0:02:37]} 15. Bxg5 {[%clk 0:02:46]}  Bf6 {[%clk 0:02:29]} 16. Bxf6 {[%clk 0:02:44]}  Rxf6 {[%clk 0:02:29]} 17. f4 {[%clk 0:02:44]}  exf4 {[%clk 0:02:25]} 18. Rxf4 {[%clk 0:02:43]}  g5 {[%clk 0:02:17]} 19. Rf1 {[%clk 0:02:41]}  f4 {[%clk 0:02:17]} 20. Qd4 {[%clk 0:02:40]}  Ng6 {[%clk 0:02:11]} 21. Nb5 {[%clk 0:02:37]}  a6 {[%clk 0:02:06]} 22. Nxc7 {[%clk 0:02:36]}  Rb8 {[%clk 0:02:02]} 23. Ne6 {[%clk 0:02:07]}  Bxe6 {[%clk 0:02:02]} 24. dxe6 {[%clk 0:02:07]}  dxc5 {[%clk 0:01:59]} 25. Qxc5 {[%clk 0:02:05]}  Rc8 {[%clk 0:01:52]} 26. Qd5 {[%clk 0:01:53]}  Qe7 {[%clk 0:01:47]} 27. e5 {[%clk 0:01:46]}  Rff8 {[%clk 0:01:44]} 28. Bg4 {[%clk 0:01:38]}  Rfd8 {[%clk 0:01:36]} 29. Qb3 {[%clk 0:01:36]}  Nxe5 {[%clk 0:01:33]} 30. Bf5 {[%clk 0:01:35]}  Nc6 {[%clk 0:01:23]} 31. a3 {[%clk 0:01:33]}  Nd4 {[%clk 0:01:20]} 32. Qb1 {[%clk 0:01:32]}  Rf8 {[%clk 0:00:47]} 33. Bg4 {[%clk 0:01:30]}  Nc2 {[%clk 0:00:38]} 34. Ra2 {[%clk 0:01:29]}  Ne3 {[%clk 0:00:38]} 35. Bf3 {[%clk 0:01:13]}  Nxf1 {[%clk 0:00:36]} 36. Qxf1 {[%clk 0:01:12]}  Qxe6 {[%clk 0:00:35]} 37. Rd2 {[%clk 0:01:09]}  Qe3+ {[%clk 0:00:33]} 38. Rf2 {[%clk 0:01:07]}  Rc1 {[%clk 0:00:31]} 39. Qxc1 {[%clk 0:01:02]}  Qxc1+ {[%clk 0:00:31]} 40. Rf1 {[%clk 0:01:03]}  Qe3+ {[%clk 0:00:31]} 41. Kh1 {[%clk 0:01:04]}  b6 {[%clk 0:00:26]} 42. Bd5+ {[%clk 0:01:00]}  Kg7 {[%clk 0:00:26]} 43. h3 {[%clk 0:01:00]}  Rd8 {[%clk 0:00:25]} 44. Bf3 {[%clk 0:00:59]}  Qxa3 {[%clk 0:00:21]} 45. Re1 {[%clk 0:00:55]}  Rd7 {[%clk 0:00:19]} 46. Re4 {[%clk 0:00:53]}  Qc1+ {[%clk 0:00:16]} 47. Kh2 {[%clk 0:00:53]}  a5 {[%clk 0:00:13]} 48. bxa5 {[%clk 0:00:52]}  bxa5 {[%clk 0:00:14]} 49. Bg4 {[%clk 0:00:51]}  Rc7 {[%clk 0:00:13]} 50. Rd4 {[%clk 0:00:48]}  Qc3 {[%clk 0:00:12]} 51. Rd1 {[%clk 0:00:45]}  a4 {[%clk 0:00:12]} 52. Bf3 {[%clk 0:00:41]}  a3 {[%clk 0:00:12]} 53. Rd5 {[%clk 0:00:37]}  a2 {[%clk 0:00:11]} 54. Rxg5+ {[%clk 0:00:36]}  Kf6 {[%clk 0:00:10]} 55. Rg4 {[%clk 0:00:33]}  a1=Q {[%clk 0:00:09]} 56. Rh4 {[%clk 0:00:30]}  Qce1 {[%clk 0:00:07]} 57. Rh6+ {[%clk 0:00:26]}  Kg7 {[%clk 0:00:07]} 0-1


[Site "https://www.chess.com"]

[Event "Titled Tuesday Blitz June 14 Late 2022"]
[White "Daggupati, Balaji"]
[Black "Voege, Tobias"]
[WhiteFideId "2090759"]
[BlackFideId "1270513"]
[WhiteElo "2708"]
[BlackElo "2379"]
[Result "1/2-1/2"]
[Round "05"]
[TimeControl "180+1"]
[Date "2022.06.14"]
[WhiteClock "0:00:31"]
[BlackClock "0:00:15"]

1. e4 {[%clk 0:03:00]}  e6 {[%clk 0:02:59]} 2. d4 {[%clk 0:02:59]}  d5 {[%clk 0:02:59]} 3. Nc3 {[%clk 0:03:00]}  Nf6 {[%clk 0:02:56]} 4. Bg5 {[%clk 0:02:59]}  Be7 {[%clk 0:02:56]} 5. e5 {[%clk 0:02:57]}  Nfd7 {[%clk 0:02:50]} 6. Bxe7 {[%clk 0:02:58]}  Qxe7 {[%clk 0:02:51]} 7. f4 {[%clk 0:02:58]}  a6 {[%clk 0:02:51]} 8. Qg4 {[%clk 0:02:59]}  f5 {[%clk 0:02:47]} 9. exf6 {[%clk 0:02:59]}  Nxf6 {[%clk 0:02:46]} 10. Qh4 {[%clk 0:02:53]}  c5 {[%clk 0:02:44]} 11. Nf3 {[%clk 0:02:52]}  cxd4 {[%clk 0:02:37]} 12. Nxd4 {[%clk 0:02:53]}  Nc6 {[%clk 0:02:28]} 13. Nf3 {[%clk 0:02:53]}  O-O {[%clk 0:02:23]} 14. O-O-O {[%clk 0:02:53]}  b5 {[%clk 0:02:06]} 15. Bd3 {[%clk 0:02:53]}  Qc7 {[%clk 0:01:54]} 16. Rhe1 {[%clk 0:02:33]}  Nb4 {[%clk 0:01:49]} 17. Ng5 {[%clk 0:02:31]}  Nxd3+ {[%clk 0:01:46]} 18. Rxd3 {[%clk 0:02:32]}  b4 {[%clk 0:01:39]} 19. Nd1 {[%clk 0:02:13]}  h6 {[%clk 0:01:33]} 20. Nxe6 {[%clk 0:02:12]}  Bxe6 {[%clk 0:01:33]} 21. Rxe6 {[%clk 0:02:13]}  Rac8 {[%clk 0:01:30]} 22. Ne3 {[%clk 0:02:02]}  Qa5 {[%clk 0:01:17]} 23. Kb1 {[%clk 0:02:02]}  Rce8 {[%clk 0:01:10]} 24. Rxe8 {[%clk 0:01:54]}  Rxe8 {[%clk 0:01:11]} 25. Nf5 {[%clk 0:01:03]}  b3 {[%clk 0:01:08]} 26. cxb3 {[%clk 0:01:00]}  Re1+ {[%clk 0:01:02]} 27. Kc2 {[%clk 0:01:00]}  Re2+ {[%clk 0:00:46]} 28. Kd1 {[%clk 0:00:59]}  Rxb2 {[%clk 0:00:41]} 29. Nxh6+ {[%clk 0:00:51]}  gxh6 {[%clk 0:00:23]} 30. Qxf6 {[%clk 0:00:50]}  Rb1+ {[%clk 0:00:22]} 31. Ke2 {[%clk 0:00:42]}  Qe1+ {[%clk 0:00:21]} 32. Kf3 {[%clk 0:00:39]}  Qe4+ {[%clk 0:00:20]} 33. Kg4 {[%clk 0:00:36]}  Qxd3 {[%clk 0:00:14]} 34. Qd8+ {[%clk 0:00:30]}  Kf7 {[%clk 0:00:14]} 35. Qd7+ {[%clk 0:00:30]}  Kf8 {[%clk 0:00:15]} 36. Qd6+ {[%clk 0:00:31]}  Ke8 {[%clk 0:00:14]} 37. Qe6+ {[%clk 0:00:31]}  Kd8 {[%clk 0:00:15]} 38. Qd6+ {[%clk 0:00:31]}  Kc8 {[%clk 0:00:15]} 39. Qc6+ {[%clk 0:00:31]}  Kd8 {[%clk 0:00:15]} 40. Qd6+ {[%clk 0:00:31]}  Ke8 {[%clk 0:00:16]} 41. Qe6+ {[%clk 0:00:31]}  Kd8 {[%clk 0:00:15]} 42. Qd6+ {[%clk 0:00:31]} 1/2-1/2


[Site "https://www.chess.com"]

[Event "Titled Tuesday Blitz June 14 Late 2022"]
[White "Deac, Bogdan-Daniel"]
[Black "Tatarinov, Dmitry"]
[WhiteFideId "1226380"]
[BlackFideId "24160067"]
[WhiteElo "2648"]
[BlackElo "2302"]
[Result "1-0"]
[Round "05"]
[TimeControl "180+1"]
[Date "2022.06.14"]
[WhiteClock "0:01:07"]
[BlackClock "0:00:08"]

1. d4 {[%clk 0:02:58]}  Nf6 {[%clk 0:02:59]} 2. Nf3 {[%clk 0:02:54]}  e6 {[%clk 0:02:59]} 3. c4 {[%clk 0:02:53]}  d5 {[%clk 0:02:59]} 4. g3 {[%clk 0:02:54]}  Bb4+ {[%clk 0:02:55]} 5. Bd2 {[%clk 0:02:53]}  Be7 {[%clk 0:02:55]} 6. Bg2 {[%clk 0:02:54]}  O-O {[%clk 0:02:55]} 7. Bf4 {[%clk 0:02:53]}  c6 {[%clk 0:02:52]} 8. Nbd2 {[%clk 0:02:53]}  b6 {[%clk 0:02:50]} 9. Qc2 {[%clk 0:02:53]}  Bb7 {[%clk 0:02:49]} 10. e4 {[%clk 0:02:52]}  Nbd7 {[%clk 0:02:19]} 11. e5 {[%clk 0:02:49]}  Ne8 {[%clk 0:02:19]} 12. h4 {[%clk 0:02:49]}  c5 {[%clk 0:02:02]} 13. Ng5 {[%clk 0:02:49]}  g6 {[%clk 0:01:46]} 14. cxd5 {[%clk 0:02:49]}  Bxd5 {[%clk 0:01:28]} 15. Bxd5 {[%clk 0:02:38]}  exd5 {[%clk 0:01:27]} 16. Nxh7 {[%clk 0:02:11]}  Kxh7 {[%clk 0:01:23]} 17. h5 {[%clk 0:02:11]}  Kg7 {[%clk 0:01:05]} 18. hxg6 {[%clk 0:02:01]}  fxg6 {[%clk 0:01:01]} 19. Rh6 {[%clk 0:01:13]}  Rf5 {[%clk 0:00:17]} 20. g4 {[%clk 0:01:13]}  Bg5 {[%clk 0:00:14]} 21. Rxg6+ {[%clk 0:01:12]}  Kxg6 {[%clk 0:00:11]} 22. Qxf5+ {[%clk 0:01:12]}  Kh6 {[%clk 0:00:12]} 23. O-O-O {[%clk 0:01:07]}  Bxf4 {[%clk 0:00:08]} 24. Rh1+ {[%clk 0:01:07]} 1-0


[Site "https://www.chess.com"]

[Event "Titled Tuesday Blitz June 14 Late 2022"]
[White "Fedoseev, Vladimir"]
[Black "Chiu, Isaac"]
[WhiteFideId "24130737"]
[BlackFideId "30900654"]
[WhiteElo "2726"]
[BlackElo "2117"]
[Result "1-0"]
[Round "05"]
[TimeControl "180+1"]
[Date "2022.06.14"]
[WhiteClock "0:01:01"]
[BlackClock "0:00:29"]

1. e4 {[%clk 0:02:41]}  e5 {[%clk 0:02:57]} 2. Nf3 {[%clk 0:02:41]}  Nc6 {[%clk 0:02:55]} 3. Bb5 {[%clk 0:02:42]}  a6 {[%clk 0:02:55]} 4. Bxc6 {[%clk 0:02:42]}  dxc6 {[%clk 0:02:53]} 5. O-O {[%clk 0:02:42]}  Bg4 {[%clk 0:02:47]} 6. h3 {[%clk 0:02:40]}  h5 {[%clk 0:02:47]} 7. d3 {[%clk 0:02:40]}  Qf6 {[%clk 0:02:47]} 8. Nbd2 {[%clk 0:02:41]}  g5 {[%clk 0:02:48]} 9. b4 {[%clk 0:02:39]}  Qg7 {[%clk 0:02:06]} 10. Bb2 {[%clk 0:02:38]}  f6 {[%clk 0:02:03]} 11. d4 {[%clk 0:02:38]}  Bd6 {[%clk 0:02:00]} 12. dxe5 {[%clk 0:02:35]}  fxe5 {[%clk 0:01:58]} 13. Nc4 {[%clk 0:02:30]}  O-O-O {[%clk 0:01:56]} 14. hxg4 {[%clk 0:01:59]}  hxg4 {[%clk 0:01:54]} 15. Nfxe5 {[%clk 0:01:56]}  Nf6 {[%clk 0:01:45]} 16. Nxg4 {[%clk 0:01:42]}  Bh2+ {[%clk 0:01:39]} 17. Nxh2 {[%clk 0:01:40]}  Rxd1 {[%clk 0:01:39]} 18. Rfxd1 {[%clk 0:01:41]}  Qh6 {[%clk 0:01:34]} 19. Kf1 {[%clk 0:01:37]}  Qxh2 {[%clk 0:01:31]} 20. Bxf6 {[%clk 0:01:37]}  Rf8 {[%clk 0:01:12]} 21. e5 {[%clk 0:01:37]}  Qh1+ {[%clk 0:01:09]} 22. Ke2 {[%clk 0:01:37]}  Qxg2 {[%clk 0:01:09]} 23. Ne3 {[%clk 0:01:35]}  Qe4 {[%clk 0:01:05]} 24. Rd3 {[%clk 0:01:28]}  g4 {[%clk 0:01:02]} 25. Rad1 {[%clk 0:01:26]}  b6 {[%clk 0:00:55]} 26. Rd8+ {[%clk 0:01:11]}  Rxd8 {[%clk 0:00:54]} 27. Rxd8+ {[%clk 0:01:12]}  Kb7 {[%clk 0:00:55]} 28. Rg8 {[%clk 0:01:12]}  Qxb4 {[%clk 0:00:51]} 29. Rxg4 {[%clk 0:01:10]}  Qb2 {[%clk 0:00:49]} 30. Re4 {[%clk 0:01:09]}  Qa3 {[%clk 0:00:30]} 31. e6 {[%clk 0:01:07]}  Qf8 {[%clk 0:00:31]} 32. e7 {[%clk 0:01:06]}  Qe8 {[%clk 0:00:32]} 33. Rh4 {[%clk 0:01:02]}  Qxe7 {[%clk 0:00:29]} 34. Bxe7 {[%clk 0:01:01]} 1-0


[Site "https://www.chess.com"]